bitfinex-derivatives/quotes_SOLF0:USTF0_20251119
["timestamp","ask_amount","ask_price","bid_price","bid_amount"]
[1763552366741,6.4862,138.86,138.84,3.3026396]
[1763552368841,0.05004288,138.87,138.84,3.3026396]
[1763552369345,0.05004288,138.87,138.86,3.25]
[1763552370941,0.05004288,138.87,138.86,9.7361]
[1763552372849,6.4835,138.92,138.88,3.25]
[1763552373649,6.4835,138.92,138.88,9.7352]
[1763552373952,0.0539385,138.91,138.89,3.30480063]
[1763552374251,6.5378385,138.91,138.89,0.05480063]
[1763552374453,0.0539385,138.91,138.89,0.05480063]
[1763552375751,6.5377385,138.91,138.89,0.05480063]
[1763552375956,0.0539385,138.91,138.89,0.05480063]
[1763552376854,6.4843,138.9,138.89,0.05480063]
[1763552377353,0.0539385,138.91,138.89,3.30480063]
[1763552381854,0.0539385,138.91,138.9,9.6743]
[1763552382056,21.75032427,138.97,138.91,3.19]
[1763552382057,17.04962105,138.97,138.91,3.19]
[1763552382458,17.04962105,138.97,138.93,3.19]
[1763552383052,0.05266489,138.96,138.94,0.04947666]
[1763552384060,6.53416489,138.96,138.94,0.04947666]
[1763552386162,0.05266489,138.96,138.94,3.23947666]
[1763552391172,6.53416489,138.96,138.94,0.04947666]
[1763552391370,6.53416489,138.96,138.94,3.23947666]
[1763552391868,0.05266489,138.96,138.94,3.23947666]
[1763552393560,6.53426489,138.96,138.94,0.04947666]
[1763552393869,1.94962105,138.95,138.94,0.04947666]
[1763552397173,8.43152105,138.95,138.94,0.04947666]
[1763552399466,0.05266489,138.96,138.94,3.23947666]
[1763552400067,6.53456489,138.96,138.94,3.23947666]
[1763552406074,0.05266489,138.96,138.94,3.23947666]
[1763552406876,0.05266489,138.96,138.95,3.19]
[1763552406877,0.00266489,138.96,138.95,3.19]
[1763552407274,6.4801,138.99,138.96,3.19]
[1763552408281,6.52628576,138.99,138.96,3.19]
[1763552409190,6.52628576,138.99,138.97,3.16]
[1763552411989,0.04618576,138.99,138.97,3.16]
[1763552412793,0.04618576,138.99,138.98,3.16]
[1763552413295,0.04618576,138.99,138.98,9.6405]
[1763552414190,0.04618576,138.99,138.98,3.16]
[1763552414490,1.48618576,138.99,138.97,0.05342684]
[1763552414683,0.04618576,138.99,138.97,0.05342684]
[1763552415191,6.4805,138.98,138.97,0.05342684]
[1763552415390,0.04618576,138.99,138.92,3.16]
[1763552415592,0.04618576,138.99,138.93,3.16]
[1763552415891,100.7997,139.0,138.93,3.16]
[1763552416284,0.05219796,138.98,138.95,0.04609389]
[1763552416481,15.08,138.97,138.95,0.04609389]
[1763552416887,6.4815,138.96,138.95,0.04609389]
[1763552418386,6.53319796,138.98,138.95,3.20609389]
[1763552420591,6.481,138.97,138.95,3.20609389]
[1763552420795,0.05219796,138.98,138.95,3.20609389]
[1763552421886,6.53279796,138.98,138.95,3.20609389]
[1763552425902,0.05219796,138.98,138.96,3.29]
[1763552430907,15.08,139.02,138.96,3.29]
[1763552431100,21.5586,139.02,138.99,3.29]
[1763552431604,15.08,139.02,138.99,3.29]
[1763552431802,15.13367232,139.02,138.99,3.33602433]
[1763552432707,15.13367232,139.02,138.99,9.81592433]
[1763552433009,0.05367232,139.02,138.99,9.81592433]
[1763552433402,0.05367232,139.02,139.0,3.29]
[1763552434609,6.53237232,139.02,139.0,3.29]
[1763552435508,0.05367232,139.02,139.0,3.29]
[1763552437008,0.05367232,139.02,139.01,3.29]
[1763552437512,0.05367232,139.02,139.0,3.29]
[1763552442409,0.05367232,139.02,139.0,9.7695]
[1763552442812,0.05367232,139.02,139.01,3.07]
[1763552444207,0.05367232,139.02,138.99,0.04602433]
[1763552444208,0.05367232,139.02,138.99,3.11602433]
[1763552445408,6.4792,139.01,138.99,0.04602433]
[1763552445610,15.11367232,139.02,138.99,0.04602433]
[1763552446912,6.4792,139.01,138.99,0.04602433]
[1763552448217,6.4796,139.0,138.99,0.04602433]
[1763552448417,6.4796,139.0,138.99,3.11602433]
[1763552448610,6.4796,139.0,138.99,0.04602433]
[1763552450027,6.4806,138.98,138.95,3.07]
[1763552450913,6.4806,138.98,138.95,3.11988502]
[1763552451114,6.53132969,138.98,138.95,3.11988502]
[1763552451316,6.481,138.97,138.95,0.04988502]
[1763552451711,6.481,138.97,138.95,3.11988502]
[1763552453021,15.11072969,138.98,138.95,3.11988502]
[1763552454919,21.59132969,138.98,138.95,3.11988502]
[1763552457017,0.05072969,138.98,138.95,3.11988502]
[1763552461124,0.05072969,138.98,138.97,3.07]
[1763552461526,0.05072969,138.98,138.95,3.11988502]
[1763552462621,0.05072969,138.98,138.97,3.07]
[1763552464022,0.05072969,138.98,138.97,9.551]
[1763552466026,0.05072969,138.98,138.96,3.07]
[1763552466618,0.05072969,138.98,138.96,9.5513]
[1763552466925,0.05072969,138.98,138.97,3.07]
[1763552477937,0.05072969,138.98,138.97,9.5509]
[1763552478933,0.05072969,138.98,138.97,3.07]
[1763552479635,0.05072969,138.98,138.97,9.5509]
[1763552480439,0.05072969,138.98,138.97,3.07]
[1763552494851,0.05072969,138.98,138.97,9.551]
[1763552497769,0.05072969,138.98,138.97,3.07]
[1763552502866,0.05072969,138.98,138.96,3.28]
[1763552503371,6.53122969,138.98,138.96,3.28]
[1763552504074,6.53122969,138.98,138.95,0.04988502]
[1763552504572,6.53122969,138.98,138.95,3.32988502]
[1763552506278,0.05072969,138.98,138.95,3.32988502]
[1763552506972,100.8313,138.95,138.9,6.74327804]
[1763552507172,6.67899205,138.93,138.88,3.28]
[1763552507474,17.02615855,138.92,138.88,3.28]
[1763552508066,0.05110203,138.91,138.89,0.04557184]
[1763552508268,1.94615855,138.9,138.89,0.04557184]
[1763552508470,1.94615855,138.9,138.84,3.28]
[1763552509374,1.94615855,138.9,138.86,0.0544313]
[1763552509375,6.53606537,138.88,138.86,0.0544313]
[1763552509682,15.08,138.87,138.86,0.0544313]
[1763552510976,15.08,138.87,138.86,3.3344313]
[1763552511374,0.05086537,138.88,138.86,3.3344313]
[1763552525182,0.05086537,138.88,138.86,0.0544313]
[1763552525388,0.05086537,138.88,138.86,3.3344313]
[1763552526978,6.53606537,138.88,138.86,3.3344313]
[1763552528380,6.53606537,138.88,138.86,0.0544313]
[1763552528684,6.4857,138.87,138.86,0.0544313]
[1763552529788,6.4857,138.87,138.86,3.2144313]
[1763552530784,0.05086537,138.88,138.86,3.2144313]
[1763552531885,6.53606537,138.88,138.86,3.2144313]
[1763552532386,0.05086537,138.88,138.86,3.2144313]
[1763552535182,6.53616537,138.88,138.86,3.2144313]
[1763552538995,0.05086537,138.88,138.86,3.2144313]
[1763552541192,0.05086537,138.88,138.87,6.4857]
[1763552541395,15.08,138.93,138.88,3.16]
[1763552541986,15.08,138.94,138.9,3.16]
[1763552542397,0.04644212,138.93,138.92,3.16]
[1763552547893,0.04644212,138.93,138.92,9.6433]
[1763552549696,21.561,138.97,138.93,3.06]
[1763552550104,9.52675383,138.99,138.94,3.06]
[1763552550303,15.08,138.98,138.94,3.06]
[1763552550704,0.05439223,138.97,138.95,3.10973709]
[1763552553405,6.53539223,138.97,138.95,3.10973709]
[1763552554103,6.53539223,138.97,138.95,0.04973709]
[1763552554305,6.4823,138.95,138.91,3.06]
[1763552554498,15.08,138.94,138.88,3.06]
[1763552555002,6.4831,138.93,138.88,6.4852]
[1763552555195,6.4831,138.93,138.89,3.06]
[1763552555400,0.04550245,138.92,138.91,3.06]
[1763552562208,6.52880245,138.92,138.9,0.05527945]
[1763552562408,0.04550245,138.92,138.9,0.05527945]
[1763552563108,6.4838,138.91,138.9,0.05527945]
[1763552564314,6.4838,138.91,138.9,3.17527945]
[1763552564813,6.4838,138.91,138.9,0.05527945]
[1763552565811,21.5638,138.91,138.9,0.05527945]
[1763552572121,15.08,138.91,138.9,3.17527945]
[1763552572420,15.08,138.91,138.9,0.05527945]
[1763552574019,20.22372703,138.91,138.9,0.05527945]
[1763552577625,5.14372703,138.91,138.9,3.17527945]
[1763552577830,20.22372703,138.91,138.9,3.17527945]
[1763552578832,5.14372703,138.91,138.9,3.17527945]
[1763552579031,0.04550245,138.92,138.9,3.17527945]
[1763552579330,5.18922948,138.92,138.91,3.12]
[1763552582235,0.04550245,138.92,138.91,3.12]
[1763552585132,2.93880257,138.93,138.92,3.12]
[1763552585433,21.72986425,138.97,138.92,3.12]
[1763552585823,21.72986425,138.97,138.94,3.12]
[1763552586029,15.08,138.97,138.94,3.12]
[1763552586336,15.12629439,138.97,138.94,3.17260924]
[1763552586930,15.12629439,138.97,138.95,3.12]
[1763552587735,0.04629439,138.97,138.95,3.12]
[1763552589428,0.04629439,138.97,138.94,3.06260924]
[1763552593633,0.04629439,138.97,138.95,3.01]
[1763552594137,0.04629439,138.97,138.96,3.01]
[1763552595842,0.04629439,138.97,138.96,9.4915]
[1763552596844,0.04629439,138.97,138.96,3.01]
[1763552598932,0.04629439,138.97,138.94,0.05260924]
[1763552598933,1.99341394,138.97,138.94,3.06260924]
[1763552599135,7.12713218,138.97,138.94,3.06260924]
[1763552599434,1.99341394,138.97,138.94,3.06260924]
[1763552599832,6.52739439,138.97,138.94,3.06260924]
[1763552600039,8.47451394,138.97,138.94,3.06260924]
[1763552600735,5.13236025,138.96,138.94,3.06260924]
[1763552601337,8.47451394,138.97,138.94,3.06260924]
[1763552605141,5.12353961,138.96,138.94,3.06260924]
[1763552608050,11.60513961,138.96,138.94,3.06260924]
[1763552608250,6.4816,138.96,138.94,3.06260924]
[1763552608438,1.99341394,138.97,138.94,0.05260924]
[1763552608638,1.94711955,138.95,138.94,0.05260924]
[1763552608951,7.07058205,138.95,138.94,0.05260924]
[1763552609449,15.06,138.96,138.94,3.22260924]
[1763552609845,21.5415,138.96,138.94,3.22260924]
[1763552610045,5.12451486,138.95,138.94,0.05260924]
[1763552611556,13.55353441,138.95,138.94,0.05260924]
[1763552613955,7.07163441,138.95,138.89,3.17]
[1763552614254,1.94711955,138.93,138.89,3.17]
[1763552614856,0.05016699,138.92,138.91,3.17]
[1763552616155,5.17684771,138.92,138.91,3.17]
[1763552617757,20.25684771,138.92,138.9,0.04753225]
[1763552618052,5.12668072,138.91,138.9,0.04753225]
[1763552618258,5.12668072,138.91,138.9,3.12753225]
[1763552618953,7.07380027,138.91,138.9,0.04753225]
[1763552619460,6.4847,138.89,138.85,3.08]
[1763552619646,8.43181955,138.89,138.85,3.08]
[1763552620351,8.43181955,138.89,138.86,0.04688951]
[1763552620544,0.05022054,138.88,138.87,3.08]
[1763552621556,5.17595846,138.88,138.87,3.08]
[1763552622153,11.66115846,138.88,138.86,0.04688951]
[1763552622456,21.61542054,138.88,138.86,3.12688951]
[1763552622657,15.13022054,138.88,138.86,3.12688951]
[1763552623258,21.61542054,138.88,138.86,3.12688951]
[1763552623455,21.61542054,138.88,138.86,0.04688951]
[1763552624054,21.61542054,138.88,138.86,3.12688951]
[1763552628261,15.13022054,138.88,138.86,3.12688951]
[1763552628963,0.05022054,138.88,138.86,3.12688951]
[1763552629164,0.05022054,138.88,138.86,0.04688951]
[1763552629867,0.05022054,138.88,138.86,3.12688951]
[1763552630252,6.53542054,138.88,138.86,0.04688951]
[1763552630455,0.05022054,138.88,138.86,0.04688951]
[1763552631465,15.08,138.87,138.86,3.12688951]
[1763552633561,15.08,138.87,138.86,0.04688951]
[1763552635861,15.08,138.87,138.86,3.12688951]
[1763552636160,0.05022054,138.88,138.86,3.12688951]
[1763552637262,0.05022054,138.88,138.86,9.61258951]
[1763552637469,0.05022054,138.88,138.87,3.08]
[1763552639463,0.05022054,138.88,138.87,9.5657]
[1763552644784,0.05022054,138.88,138.87,3.08]
[1763552645885,0.05022054,138.88,138.87,9.5657]
[1763552646786,0.05022054,138.88,138.87,3.08]
[1763552653603,0.05022054,138.88,138.86,3.02688951]
[1763552655490,0.05022054,138.88,138.86,9.51298951]
[1763552655695,0.05022054,138.88,138.87,2.98]
[1763552656194,0.05022054,138.88,138.87,9.4657]
[1763552657289,6.64986425,138.95,138.91,2.98]
[1763552657484,5.13658573,138.94,138.91,2.98]
[1763552657687,14.83196962,138.96,138.91,2.98]
[1763552657888,21.31356962,138.96,138.91,2.98]
[1763552658089,5.13658573,138.95,138.91,2.98]
[1763552658297,0.04914352,138.94,138.93,2.98]
[1763552658484,0.04914352,138.94,138.92,3.02660264]
[1763552658689,5.18572925,138.94,138.92,3.02660264]
[1763552659201,0.04914352,138.94,138.92,3.02660264]
[1763552661594,5.18572925,138.94,138.92,3.02660264]
[1763552661799,0.04914352,138.94,138.92,3.02660264]
[1763552662101,5.18572925,138.94,138.92,3.02660264]
[1763552663602,11.66812925,138.94,138.92,0.04660264]
[1763552663901,13.18140777,138.94,138.92,0.04660264]
[1763552664102,5.13658573,138.93,138.92,0.04660264]
[1763552664792,6.53154352,138.94,138.92,0.04660264]
[1763552664793,18.3179935,138.94,138.92,0.04660264]
[1763552664993,5.13658573,138.93,138.92,0.04660264]
[1763552665297,18.3179935,138.94,138.92,0.04660264]
[1763552665499,5.13658573,138.93,138.92,0.04660264]
[1763552667292,6.4834,138.92,138.89,2.98]
[1763552667493,5.13658573,138.91,138.89,2.98]
[1763552668001,11.62038573,138.91,138.89,2.98]
[1763552668296,5.13658573,138.9,138.89,0.05213266]
[1763552671001,11.62078573,138.9,138.89,0.05213266]
[1763552672104,5.13658573,138.9,138.89,0.05213266]
[1763552674909,11.62078573,138.9,138.89,0.05213266]
[1763552676706,26.68078573,138.9,138.89,0.05213266]
[1763552677000,26.68078573,138.9,138.89,3.03213266]
[1763552677205,20.19658573,138.9,138.89,3.03213266]
[1763552677408,5.13658573,138.9,138.89,3.03213266]
[1763552678306,5.13658573,138.9,138.89,0.05213266]
[1763552683315,11.62088573,138.9,138.89,0.05213266]
[1763552685206,6.4847,138.89,138.85,3.19]
[1763552685408,5.12941086,138.88,138.85,3.19]
[1763552686318,5.18378184,138.88,138.85,3.24479796]
[1763552686618,5.18378184,138.88,138.85,0.05479796]
[1763552686913,0.05437098,138.88,138.85,3.24479796]
[1763552687111,5.18378184,138.88,138.85,3.24479796]
[1763552687316,0.05437098,138.88,138.85,3.24479796]
[1763552687814,15.06,138.87,138.85,3.24479796]
[1763552688119,15.11437098,138.88,138.85,3.24479796]
[1763552688411,5.12656081,138.87,138.85,3.24479796]
[1763552691520,5.12656081,138.87,138.86,3.19]
[1763552691719,0.05437098,138.88,138.86,3.19]
[1763552691919,5.18093179,138.88,138.86,3.19]
[1763552696617,0.05437098,138.88,138.86,3.19]
[1763552697822,0.05437098,138.88,138.86,9.676]
[1763552698026,0.05437098,138.88,138.87,3.19]
[1763552700225,0.05437098,138.88,138.85,9.73129796]
[1763552700431,0.05437098,138.88,138.86,3.19]
[1763552702131,0.05437098,138.88,138.85,3.24479796]
[1763552702328,5.18093179,138.88,138.85,3.24479796]
[1763552702924,11.66613179,138.88,138.85,3.24479796]
[1763552703129,5.12656081,138.87,138.85,0.05479796]
[1763552703331,11.83079604,138.88,138.85,0.05479796]
[1763552703637,6.4858,138.87,138.85,0.05479796]
[1763552703939,20.18656081,138.86,138.85,0.05479796]
[1763552708941,5.12656081,138.86,138.85,3.09479796]
[1763552709142,15.08,138.86,138.85,3.09479796]
[1763552709339,20.20656081,138.86,138.85,3.09479796]
[1763552709733,20.20656081,138.86,138.85,0.05479796]
[1763552710138,20.20656081,138.86,138.85,3.09479796]
[1763552710339,20.20656081,138.86,138.85,0.05479796]
[1763552711145,20.20656081,138.86,138.85,3.09479796]
[1763552711346,20.20656081,138.86,138.85,0.05479796]
[1763552713550,5.12656081,138.86,138.85,0.05479796]
[1763552718257,11.61266081,138.86,138.85,0.05479796]
[1763552721652,5.12656081,138.86,138.85,3.09479796]
[1763552721853,5.12656081,138.87,138.85,3.09479796]
[1763552722358,5.12656081,138.87,138.85,0.05479796]
[1763552722764,11.77642506,138.87,138.85,0.05479796]
[1763552723058,6.4861,138.86,138.85,0.05479796]
[1763552723262,11.61266081,138.86,138.85,0.05479796]
[1763552729976,13.56253553,138.86,138.85,0.05479796]
[1763552734262,15.11437098,138.88,138.85,3.31479796]
[1763552734460,5.14048983,138.87,138.85,3.31479796]
[1763552734969,5.14048983,138.87,138.86,3.26]
[1763552735965,0.05437098,138.88,138.86,3.26]
[1763552736162,5.19351002,138.88,138.86,3.26]
[1763552736469,0.05437098,138.88,138.86,3.26]
[1763552736966,0.05437098,138.88,138.87,3.26]
[1763552743065,0.05437098,138.88,138.87,9.7456]
[1763552744470,0.00437098,138.88,138.87,9.7456]
[1763552745367,0.00437098,138.88,138.87,11.69547472]
[1763552750877,120.63598627,138.94,138.93,3.12]
[1763552751179,18.26286768,138.98,138.93,3.12]
[1763552751374,5.11533491,138.97,138.93,3.12]
[1763552751868,2.00321781,138.96,138.94,0.05492896]
[1763552752571,6.4819,138.95,138.94,0.05492896]
[1763552756381,8.48461781,138.96,138.94,0.05492896]
[1763552757384,0.05334309,138.96,138.94,3.17492896]
[1763552759684,0.05334309,138.96,138.94,0.05492896]
[1763552761284,0.05334309,138.96,138.94,3.17492896]
[1763552762082,0.05334309,138.96,138.95,3.12]
[1763552763987,2.00321781,138.96,138.94,0.05492896]
[1763552765186,2.00321781,138.96,138.94,3.17492896]
[1763552766086,2.00321781,138.96,138.94,0.05492896]
[1763552766487,8.48461781,138.96,138.94,0.05492896]
[1763552766689,15.06,138.95,138.89,3.12]
[1763552766878,1.94987472,138.93,138.89,3.12]
[1763552767079,6.4833,138.92,138.88,3.12]
[1763552767786,6.4833,138.92,138.89,0.04656766]
[1763552767787,0.05186072,138.91,138.89,0.04656766]
[1763552768777,0.05186072,138.91,138.89,3.16656766]
[1763552772982,8.48553544,138.91,138.89,0.04656766]
[1763552773195,5.11394614,138.9,138.83,3.12]
[1763552773388,8.43607472,138.86,138.81,6.488]
[1763552773582,8.43607472,138.86,138.81,3.12]
[1763552774389,0.046846,138.85,138.82,3.16675494]
[1763552780000,0.046846,138.85,138.82,0.04675494]
[1763552780902,6.4871,138.84,138.82,0.04675494]
[1763552785105,0.046846,138.85,138.82,3.06675494]
[1763552786904,0.046846,138.85,138.83,3.02]
[1763552787101,6.533446,138.85,138.83,3.02]
[1763552787302,0.046846,138.85,138.82,0.04675494]
[1763552787706,8.20881615,138.85,138.82,0.04675494]
[1763552788693,6.4872,138.84,138.82,0.04675494]
[1763552790198,0.046846,138.85,138.82,0.04675494]
[1763552790199,6.4875,138.83,138.82,0.04675494]
[1763552790400,21.5475,138.83,138.82,0.04675494]
[1763552793112,6.4875,138.83,138.82,0.04675494]
[1763552793297,6.4885,138.81,138.77,3.02]
[1763552794303,6.4885,138.81,138.78,0.04732421]
[1763552794304,0.05242659,138.8,138.78,0.04732421]
[1763552794503,0.05242659,138.8,138.78,3.06732421]
[1763552795508,6.54132659,138.8,138.78,3.06732421]
[1763552797117,0.05242659,138.8,138.78,3.06732421]
[1763552798114,0.05242659,138.8,138.78,0.04732421]
[1763552799110,0.05242659,138.8,138.78,3.20732421]
[1763552799818,6.54142659,138.8,138.78,3.20732421]
[1763552800511,0.05242659,138.8,138.78,3.20732421]
[1763552804924,0.05242659,138.8,138.79,9.6494]
[1763552806317,0.05242659,138.8,138.79,3.16]
[1763552808814,0.05242659,138.8,138.79,9.6494]
[1763552809925,0.05242659,138.8,138.79,3.16]
[1763552810426,0.05242659,138.8,138.78,3.20732421]
[1763552810926,6.54132659,138.8,138.78,3.20732421]
[1763552814232,6.54132659,138.8,138.78,0.04732421]
[1763552814434,6.4894,138.79,138.78,0.04732421]
[1763552814628,21.5494,138.79,138.78,0.04732421]
[1763552814830,26.67198648,138.79,138.78,0.04732421]
[1763552820832,5.12258648,138.79,138.78,0.04732421]
[1763552821038,5.17501307,138.8,138.78,3.20732421]
[1763552821237,20.23501307,138.8,138.78,3.20732421]
[1763552821436,5.12258648,138.79,138.78,3.20732421]
[1763552821640,0.05242659,138.8,138.78,3.20732421]
[1763552821934,5.19068902,138.8,138.78,3.20732421]
[1763552823035,5.19261279,138.8,138.78,3.20732421]
[1763552823233,0.05242659,138.8,138.78,3.20732421]
[1763552823836,5.19457435,138.8,138.78,3.20732421]
[1763552826845,6.4894,138.79,138.78,0.04732421]
[1763552827032,11.63154776,138.79,138.78,0.04732421]
[1763552827739,5.14214776,138.79,138.78,0.04732421]
[1763552827942,5.19457435,138.8,138.78,0.04732421]
[1763552828640,11.68347435,138.8,138.78,0.04732421]
[1763552828836,5.14214776,138.79,138.78,0.04732421]
[1763552830443,11.63154776,138.79,138.78,0.04732421]
[1763552832049,5.14214776,138.79,138.78,0.04732421]
[1763552832340,5.19457435,138.8,138.78,3.29732421]
[1763552832651,5.19457435,138.8,138.79,9.7394]
[1763552832844,0.05242659,138.8,138.79,9.7394]
[1763552833945,0.05242659,138.8,138.78,3.29732421]
[1763552838850,0.05242659,138.8,138.78,9.78712421]
[1763552839049,0.05242659,138.8,138.79,3.25]
[1763552842250,0.05242659,138.8,138.79,9.7394]
[1763552844851,0.05242659,138.8,138.79,3.25]
[1763552845052,0.05242659,138.8,138.78,0.04732421]
[1763552845053,0.05242659,138.8,138.78,3.32732421]
[1763552845247,0.05242659,138.8,138.78,0.04732421]
[1763552845851,0.05242659,138.8,138.78,3.32732421]
[1763552848365,5.19457435,138.8,138.78,3.32732421]
[1763552850565,11.68347435,138.8,138.78,3.32732421]
[1763552850763,5.14214776,138.79,138.78,3.32732421]
[1763552853869,0.05242659,138.8,138.78,3.32732421]
[1763552854368,5.19660669,138.8,138.78,0.04732421]
[1763552854560,5.19660669,138.8,138.78,3.32732421]
[1763552854764,6.4894,138.79,138.78,3.32732421]
[1763552854966,11.6335801,138.79,138.78,0.04732421]
[1763552855564,6.49,138.78,138.76,3.28]
[1763552855771,5.14526578,138.77,138.75,3.28]
[1763552855973,5.14526578,138.78,138.75,3.28]
[1763552856168,1.95113944,138.79,138.75,3.28]
[1763552856575,0.05126407,138.78,138.76,0.05344412]
[1763552856976,6.4904,138.77,138.76,0.05344412]
[1763552857178,11.63566578,138.77,138.76,0.05344412]
[1763552858489,26.69566578,138.77,138.76,0.05344412]
[1763552859084,20.20526578,138.77,138.76,3.09344412]
[1763552859487,20.20526578,138.77,138.76,0.05344412]
[1763552860386,20.20526578,138.77,138.76,3.09344412]
[1763552860586,5.14526578,138.77,138.76,3.09344412]
[1763552860977,15.11126407,138.78,138.76,3.09344412]
[1763552861379,21.60116407,138.78,138.76,3.09344412]
[1763552861684,5.14266011,138.77,138.76,0.05344412]
[1763552862072,5.14266011,138.77,138.76,3.09344412]
[1763552862874,0.05126407,138.78,138.76,3.09344412]
[1763552864389,0.05126407,138.78,138.76,9.58414412]
[1763552864783,0.05126407,138.78,138.77,3.04]
[1763552871994,0.05126407,138.78,138.77,9.5303]
[1763552873094,0.05126407,138.78,138.77,3.04]
[1763552878100,5.19478114,138.78,138.77,3.04]
[1763552884098,15.06,138.8,138.77,3.04]
[1763552884099,5.14351707,138.79,138.77,9.5303]
[1763552884296,5.14624842,138.81,138.78,3.04]
[1763552884604,5.14624842,138.81,138.78,9.5298]
[1763552884792,5.14624842,138.81,138.79,3.04]
[1763552885190,5.19320776,138.81,138.79,3.04]
[1763552885395,5.19320776,138.81,138.8,3.04]
[1763552885892,5.19320776,138.81,138.79,3.09222448]
[1763552886707,0.04695934,138.81,138.79,3.09222448]
[1763552888007,0.04695934,138.81,138.79,9.58152448]
[1763552888202,0.04695934,138.81,138.8,3.19]
[1763552892913,20.25528619,138.81,138.79,0.05222448]
[1763552893116,7.09946629,138.8,138.79,0.05222448]
[1763552894017,13.58836629,138.8,138.79,3.24222448]
[1763552894221,28.64836629,138.8,138.79,3.24222448]
[1763552895417,28.64836629,138.8,138.79,0.05222448]
[1763552897220,22.15946629,138.8,138.79,3.24222448]
[1763552897919,22.15946629,138.8,138.79,0.05222448]
[1763552899721,22.15946629,138.8,138.79,3.24222448]
[1763552900420,22.15946629,138.8,138.79,0.05222448]
[1763552900824,20.20832685,138.8,138.79,0.05222448]
[1763552901034,26.69722685,138.8,138.79,0.05222448]
[1763552910721,11.63722685,138.8,138.79,0.05222448]
[1763552911026,29.74671404,138.8,138.79,0.05222448]
[1763552912327,20.20832685,138.8,138.79,3.27222448]
[1763552912519,20.20832685,138.8,138.79,0.05222448]
[1763552915028,26.69722685,138.8,138.79,0.05222448]
[1763552915927,20.20832685,138.8,138.79,0.05222448]
[1763552917732,26.69722685,138.8,138.79,0.05222448]
[1763552919929,5.14832685,138.8,138.79,0.05222448]
[1763552921433,11.63722685,138.8,138.79,0.05222448]
[1763552930234,18.30641558,138.8,138.79,0.05222448]
[1763552931143,11.63722685,138.8,138.79,0.05222448]
[1763552932144,18.30641558,138.8,138.79,0.05222448]
[1763552935346,11.63722685,138.8,138.79,0.05222448]
[1763552936143,5.14832685,138.8,138.79,3.08222448]
[1763552936349,20.20832685,138.8,138.79,0.05222448]
[1763552937952,20.20704905,138.8,138.79,0.05222448]
[1763552938450,26.69594905,138.8,138.79,0.05222448]
[1763552940852,11.63594905,138.8,138.79,0.05222448]
[1763552941149,26.69594905,138.8,138.79,0.05222448]
[1763552944559,26.69594905,138.8,138.73,0.83033]
[1763552944560,6.4899,138.78,138.74,3.03]
[1763552944767,5.14704905,138.77,138.74,3.03]
[1763552945567,5.19347897,138.77,138.74,3.08303691]
[1763552945866,5.19347897,138.77,138.74,9.57473691]
[1763552946063,5.19347897,138.77,138.75,3.03]
[1763552946360,11.68387897,138.77,138.74,0.05303691]
[1763552946557,6.53682992,138.77,138.74,3.08303691]
[1763552947166,6.4908,138.76,138.74,3.08303691]
[1763552947565,6.4908,138.76,138.74,0.05303691]
[1763552948265,6.4908,138.76,138.74,3.23303691]
[1763552948466,6.53672992,138.77,138.74,3.23303691]
[1763552948665,5.14415891,138.76,138.74,3.23303691]
[1763552951266,6.53672992,138.77,138.74,3.23303691]
[1763552951466,6.53672992,138.77,138.75,3.18]
[1763552953469,5.14159807,138.76,138.75,3.18]
[1763552953870,5.14159807,138.76,138.74,3.23303691]
[1763552955575,5.14159807,138.76,138.75,3.18]
[1763552957476,0.04642992,138.77,138.76,3.18]
[1763552965374,0.04642992,138.77,138.76,9.6708]
[1763552985092,5.14397657,138.79,138.78,9.5498]
[1763552985298,5.14397657,138.81,138.79,3.06]
[1763552985598,5.14397657,138.82,138.79,3.06]
[1763552986203,5.19254964,138.82,138.79,3.10581109]
[1763552986900,5.19254964,138.82,138.8,9.5489]
[1763552989900,5.19254964,138.82,138.81,3.06]
[1763552990100,6.63254964,138.82,138.81,3.06]
[1763552992899,5.19254964,138.82,138.81,9.5484]
[1763552993096,0.04857307,138.82,138.81,9.5484]
[1763553002711,0.04857307,138.82,138.81,3.06]
[1763553002915,2.00048109,138.82,138.79,0.04581109]
[1763553003711,1.95190802,138.8,138.79,0.04581109]
[1763553010626,2.00048109,138.82,138.79,3.27581109]
[1763553010828,0.04857307,138.82,138.79,3.27581109]
[1763553011726,0.04857307,138.82,138.81,3.23]
[1763553016428,125.89726996,138.86,138.83,3.23]
[1763553017532,125.95264835,138.86,138.83,3.28291736]